{"text_format":"3","workbook":"xlsx","n_sheets":3,"sheets":["Agenda","Entrada de dados","Pesquisa de nome"],"not_rendered":{"defined_names":5},"read":"whole","date_system":"1900"}

{"sheet":"Agenda","index":0,"n_rows":23,"n_cols":9,"rows_kept":23,"merged":[[1,1,2,3]]}
[]
[null,"PROGRAMAÇÃO DIÁRIA",{"$nulls":4},"Para a semana de","Mostrar agenda de: "]
[{"$nulls":5},{"$f":"WEEKDAY(SemanaDe,1)","v":3},"2012-07-03","Manuel"]
[null,null,{"$f":"$F$3=COLUMN(A$1)","v":false},{"$f":"$F$3=COLUMN(B$1)","v":false},true,false,false,false,false]
[null,null,{"$f":"COLUMN(A$1)-MATCH(TRUE,$C$4:$I$4,0)+SemanaDe+1","v":"2012-07-02"},{"$f":"COLUMN(B$1)-MATCH(TRUE,$C$4:$I$4,0)+SemanaDe+1","v":"2012-07-03"},"2012-07-04","2012-07-05","2012-07-06","2012-07-07","2012-07-08"]
[null,"HORA","SEGUNDA-FEIRA","TERÇA-FEIRA","QUARTA-FEIRA","QUINTA-FEIRA","SEXTA-FEIRA","SÁBADO","DOMINGO"]
[null,"06:00:00",{"$f":"IFERROR(INDEX(tblDados[],MATCH(C$5+$B7&MostrarNome,tblDados[DATA E HORA]&tblDados[QUEM],0),3),\"\")","v":""},{"$f":"IFERROR(INDEX(tblDados[],MATCH(D$5+$B7&MostrarNome,tblDados[DATA E HORA]&tblDados[QUEM],0),3),\"\")","v":""},{"$f":"IFERROR(INDEX(tblDados[],MATCH(E$5+$B7&MostrarNome,tblDados[DATA E HORA]&tblDados[QUEM],0),3),\"\")","v":""},{"$f":"IFERROR(INDEX(tblDados[],MATCH(F$5+$B7&MostrarNome,tblDados[DATA E HORA]&tblDados[QUEM],0),3),\"\")","v":""},{"$f":"IFERROR(INDEX(tblDados[],MATCH(G$5+$B7&MostrarNome,tblDados[DATA E HORA]&tblDados[QUEM],0),3),\"\")","v":""},{"$f":"IFERROR(INDEX(tblDados[],MATCH(H$5+$B7&MostrarNome,tblDados[DATA E HORA]&tblDados[QUEM],0),3),\"\")","v":""},{"$f":"IFERROR(INDEX(tblDados[],MATCH(I$5+$B7&MostrarNome,tblDados[DATA E HORA]&tblDados[QUEM],0),3),\"\")","v":""}]
[null,"07:00:00",{"$f":"IFERROR(INDEX(tblDados[],MATCH(C$5+$B8&MostrarNome,tblDados[DATA E HORA]&tblDados[QUEM],0),3),\"\")","v":""},{"$f":"IFERROR(INDEX(tblDados[],MATCH(D$5+$B8&MostrarNome,tblDados[DATA E HORA]&tblDados[QUEM],0),3),\"\")","v":""},{"$f":"IFERROR(INDEX(tblDados[],MATCH(E$5+$B8&MostrarNome,tblDados[DATA E HORA]&tblDados[QUEM],0),3),\"\")","v":""},{"$f":"IFERROR(INDEX(tblDados[],MATCH(F$5+$B8&MostrarNome,tblDados[DATA E HORA]&tblDados[QUEM],0),3),\"\")","v":""},{"$f":"IFERROR(INDEX(tblDados[],MATCH(G$5+$B8&MostrarNome,tblDados[DATA E HORA]&tblDados[QUEM],0),3),\"\")","v":""},{"$f":"IFERROR(INDEX(tblDados[],MATCH(H$5+$B8&MostrarNome,tblDados[DATA E HORA]&tblDados[QUEM],0),3),\"\")","v":""},{"$f":"IFERROR(INDEX(tblDados[],MATCH(I$5+$B8&MostrarNome,tblDados[DATA E HORA]&tblDados[QUEM],0),3),\"\")","v":""}]
[null,"08:00:00",{"$f":"IFERROR(INDEX(tblDados[],MATCH(C$5+$B9&MostrarNome,tblDados[DATA E HORA]&tblDados[QUEM],0),3),\"\")","v":""},{"$f":"IFERROR(INDEX(tblDados[],MATCH(D$5+$B9&MostrarNome,tblDados[DATA E HORA]&tblDados[QUEM],0),3),\"\")","v":""},{"$f":"IFERROR(INDEX(tblDados[],MATCH(E$5+$B9&MostrarNome,tblDados[DATA E HORA]&tblDados[QUEM],0),3),\"\")","v":""},{"$f":"IFERROR(INDEX(tblDados[],MATCH(F$5+$B9&MostrarNome,tblDados[DATA E HORA]&tblDados[QUEM],0),3),\"\")","v":""},{"$f":"IFERROR(INDEX(tblDados[],MATCH(G$5+$B9&MostrarNome,tblDados[DATA E HORA]&tblDados[QUEM],0),3),\"\")","v":""},{"$f":"IFERROR(INDEX(tblDados[],MATCH(H$5+$B9&MostrarNome,tblDados[DATA E HORA]&tblDados[QUEM],0),3),\"\")","v":""},{"$f":"IFERROR(INDEX(tblDados[],MATCH(I$5+$B9&MostrarNome,tblDados[DATA E HORA]&tblDados[QUEM],0),3),\"\")","v":""}]
[null,"09:00:00",{"$f":"IFERROR(INDEX(tblDados[],MATCH(C$5+$B10&MostrarNome,tblDados[DATA E HORA]&tblDados[QUEM],0),3),\"\")","v":""},{"$f":"IFERROR(INDEX(tblDados[],MATCH(D$5+$B10&MostrarNome,tblDados[DATA E HORA]&tblDados[QUEM],0),3),\"\")","v":""},{"$f":"IFERROR(INDEX(tblDados[],MATCH(E$5+$B10&MostrarNome,tblDados[DATA E HORA]&tblDados[QUEM],0),3),\"\")","v":""},{"$f":"IFERROR(INDEX(tblDados[],MATCH(F$5+$B10&MostrarNome,tblDados[DATA E HORA]&tblDados[QUEM],0),3),\"\")","v":""},{"$f":"IFERROR(INDEX(tblDados[],MATCH(G$5+$B10&MostrarNome,tblDados[DATA E HORA]&tblDados[QUEM],0),3),\"\")","v":""},{"$f":"IFERROR(INDEX(tblDados[],MATCH(H$5+$B10&MostrarNome,tblDados[DATA E HORA]&tblDados[QUEM],0),3),\"\")","v":""},{"$f":"IFERROR(INDEX(tblDados[],MATCH(I$5+$B10&MostrarNome,tblDados[DATA E HORA]&tblDados[QUEM],0),3),\"\")","v":""}]
[null,"10:00:00",{"$f":"IFERROR(INDEX(tblDados[],MATCH(C$5+$B11&MostrarNome,tblDados[DATA E HORA]&tblDados[QUEM],0),3),\"\")","v":""},{"$f":"IFERROR(INDEX(tblDados[],MATCH(D$5+$B11&MostrarNome,tblDados[DATA E HORA]&tblDados[QUEM],0),3),\"\")","v":""},{"$f":"IFERROR(INDEX(tblDados[],MATCH(E$5+$B11&MostrarNome,tblDados[DATA E HORA]&tblDados[QUEM],0),3),\"\")","v":"Desfile no centro da cidade"},{"$f":"IFERROR(INDEX(tblDados[],MATCH(F$5+$B11&MostrarNome,tblDados[DATA E HORA]&tblDados[QUEM],0),3),\"\")","v":""},{"$f":"IFERROR(INDEX(tblDados[],MATCH(G$5+$B11&MostrarNome,tblDados[DATA E HORA]&tblDados[QUEM],0),3),\"\")","v":""},{"$f":"IFERROR(INDEX(tblDados[],MATCH(H$5+$B11&MostrarNome,tblDados[DATA E HORA]&tblDados[QUEM],0),3),\"\")","v":""},{"$f":"IFERROR(INDEX(tblDados[],MATCH(I$5+$B11&MostrarNome,tblDados[DATA E HORA]&tblDados[QUEM],0),3),\"\")","v":""}]
[null,"11:00:00",{"$f":"IFERROR(INDEX(tblDados[],MATCH(C$5+$B12&MostrarNome,tblDados[DATA E HORA]&tblDados[QUEM],0),3),\"\")","v":""},{"$f":"IFERROR(INDEX(tblDados[],MATCH(D$5+$B12&MostrarNome,tblDados[DATA E HORA]&tblDados[QUEM],0),3),\"\")","v":""},{"$f":"IFERROR(INDEX(tblDados[],MATCH(E$5+$B12&MostrarNome,tblDados[DATA E HORA]&tblDados[QUEM],0),3),\"\")","v":""},{"$f":"IFERROR(INDEX(tblDados[],MATCH(F$5+$B12&MostrarNome,tblDados[DATA E HORA]&tblDados[QUEM],0),3),\"\")","v":""},{"$f":"IFERROR(INDEX(tblDados[],MATCH(G$5+$B12&MostrarNome,tblDados[DATA E HORA]&tblDados[QUEM],0),3),\"\")","v":"Churrasco com a família"},{"$f":"IFERROR(INDEX(tblDados[],MATCH(H$5+$B12&MostrarNome,tblDados[DATA E HORA]&tblDados[QUEM],0),3),\"\")","v":""},{"$f":"IFERROR(INDEX(tblDados[],MATCH(I$5+$B12&MostrarNome,tblDados[DATA E HORA]&tblDados[QUEM],0),3),\"\")","v":""}]
[null,"12:00:00",{"$f":"IFERROR(INDEX(tblDados[],MATCH(C$5+$B13&MostrarNome,tblDados[DATA E HORA]&tblDados[QUEM],0),3),\"\")","v":""},{"$f":"IFERROR(INDEX(tblDados[],MATCH(D$5+$B13&MostrarNome,tblDados[DATA E HORA]&tblDados[QUEM],0),3),\"\")","v":""},{"$f":"IFERROR(INDEX(tblDados[],MATCH(E$5+$B13&MostrarNome,tblDados[DATA E HORA]&tblDados[QUEM],0),3),\"\")","v":""},{"$f":"IFERROR(INDEX(tblDados[],MATCH(F$5+$B13&MostrarNome,tblDados[DATA E HORA]&tblDados[QUEM],0),3),\"\")","v":""},{"$f":"IFERROR(INDEX(tblDados[],MATCH(G$5+$B13&MostrarNome,tblDados[DATA E HORA]&tblDados[QUEM],0),3),\"\")","v":""},{"$f":"IFERROR(INDEX(tblDados[],MATCH(H$5+$B13&MostrarNome,tblDados[DATA E HORA]&tblDados[QUEM],0),3),\"\")","v":""},{"$f":"IFERROR(INDEX(tblDados[],MATCH(I$5+$B13&MostrarNome,tblDados[DATA E HORA]&tblDados[QUEM],0),3),\"\")","v":""}]
[null,"13:00:00",{"$f":"IFERROR(INDEX(tblDados[],MATCH(C$5+$B14&MostrarNome,tblDados[DATA E HORA]&tblDados[QUEM],0),3),\"\")","v":""},{"$f":"IFERROR(INDEX(tblDados[],MATCH(D$5+$B14&MostrarNome,tblDados[DATA E HORA]&tblDados[QUEM],0),3),\"\")","v":""},{"$f":"IFERROR(INDEX(tblDados[],MATCH(E$5+$B14&MostrarNome,tblDados[DATA E HORA]&tblDados[QUEM],0),3),\"\")","v":""},{"$f":"IFERROR(INDEX(tblDados[],MATCH(F$5+$B14&MostrarNome,tblDados[DATA E HORA]&tblDados[QUEM],0),3),\"\")","v":""},{"$f":"IFERROR(INDEX(tblDados[],MATCH(G$5+$B14&MostrarNome,tblDados[DATA E HORA]&tblDados[QUEM],0),3),\"\")","v":""},{"$f":"IFERROR(INDEX(tblDados[],MATCH(H$5+$B14&MostrarNome,tblDados[DATA E HORA]&tblDados[QUEM],0),3),\"\")","v":""},{"$f":"IFERROR(INDEX(tblDados[],MATCH(I$5+$B14&MostrarNome,tblDados[DATA E HORA]&tblDados[QUEM],0),3),\"\")","v":""}]
[null,"14:00:00",{"$f":"IFERROR(INDEX(tblDados[],MATCH(C$5+$B15&MostrarNome,tblDados[DATA E HORA]&tblDados[QUEM],0),3),\"\")","v":""},{"$f":"IFERROR(INDEX(tblDados[],MATCH(D$5+$B15&MostrarNome,tblDados[DATA E HORA]&tblDados[QUEM],0),3),\"\")","v":""},{"$f":"IFERROR(INDEX(tblDados[],MATCH(E$5+$B15&MostrarNome,tblDados[DATA E HORA]&tblDados[QUEM],0),3),\"\")","v":""},{"$f":"IFERROR(INDEX(tblDados[],MATCH(F$5+$B15&MostrarNome,tblDados[DATA E HORA]&tblDados[QUEM],0),3),\"\")","v":""},{"$f":"IFERROR(INDEX(tblDados[],MATCH(G$5+$B15&MostrarNome,tblDados[DATA E HORA]&tblDados[QUEM],0),3),\"\")","v":""},{"$f":"IFERROR(INDEX(tblDados[],MATCH(H$5+$B15&MostrarNome,tblDados[DATA E HORA]&tblDados[QUEM],0),3),\"\")","v":""},{"$f":"IFERROR(INDEX(tblDados[],MATCH(I$5+$B15&MostrarNome,tblDados[DATA E HORA]&tblDados[QUEM],0),3),\"\")","v":""}]
[null,"15:00:00",{"$f":"IFERROR(INDEX(tblDados[],MATCH(C$5+$B16&MostrarNome,tblDados[DATA E HORA]&tblDados[QUEM],0),3),\"\")","v":""},{"$f":"IFERROR(INDEX(tblDados[],MATCH(D$5+$B16&MostrarNome,tblDados[DATA E HORA]&tblDados[QUEM],0),3),\"\")","v":""},{"$f":"IFERROR(INDEX(tblDados[],MATCH(E$5+$B16&MostrarNome,tblDados[DATA E HORA]&tblDados[QUEM],0),3),\"\")","v":""},{"$f":"IFERROR(INDEX(tblDados[],MATCH(F$5+$B16&MostrarNome,tblDados[DATA E HORA]&tblDados[QUEM],0),3),\"\")","v":""},{"$f":"IFERROR(INDEX(tblDados[],MATCH(G$5+$B16&MostrarNome,tblDados[DATA E HORA]&tblDados[QUEM],0),3),\"\")","v":""},{"$f":"IFERROR(INDEX(tblDados[],MATCH(H$5+$B16&MostrarNome,tblDados[DATA E HORA]&tblDados[QUEM],0),3),\"\")","v":""},{"$f":"IFERROR(INDEX(tblDados[],MATCH(I$5+$B16&MostrarNome,tblDados[DATA E HORA]&tblDados[QUEM],0),3),\"\")","v":""}]
[null,"16:00:00",{"$f":"IFERROR(INDEX(tblDados[],MATCH(C$5+$B17&MostrarNome,tblDados[DATA E HORA]&tblDados[QUEM],0),3),\"\")","v":""},{"$f":"IFERROR(INDEX(tblDados[],MATCH(D$5+$B17&MostrarNome,tblDados[DATA E HORA]&tblDados[QUEM],0),3),\"\")","v":"Ir para o sítio"},{"$f":"IFERROR(INDEX(tblDados[],MATCH(E$5+$B17&MostrarNome,tblDados[DATA E HORA]&tblDados[QUEM],0),3),\"\")","v":""},{"$f":"IFERROR(INDEX(tblDados[],MATCH(F$5+$B17&MostrarNome,tblDados[DATA E HORA]&tblDados[QUEM],0),3),\"\")","v":""},{"$f":"IFERROR(INDEX(tblDados[],MATCH(G$5+$B17&MostrarNome,tblDados[DATA E HORA]&tblDados[QUEM],0),3),\"\")","v":""},{"$f":"IFERROR(INDEX(tblDados[],MATCH(H$5+$B17&MostrarNome,tblDados[DATA E HORA]&tblDados[QUEM],0),3),\"\")","v":""},{"$f":"IFERROR(INDEX(tblDados[],MATCH(I$5+$B17&MostrarNome,tblDados[DATA E HORA]&tblDados[QUEM],0),3),\"\")","v":""}]
[null,"17:00:00",{"$f":"IFERROR(INDEX(tblDados[],MATCH(C$5+$B18&MostrarNome,tblDados[DATA E HORA]&tblDados[QUEM],0),3),\"\")","v":""},{"$f":"IFERROR(INDEX(tblDados[],MATCH(D$5+$B18&MostrarNome,tblDados[DATA E HORA]&tblDados[QUEM],0),3),\"\")","v":""},{"$f":"IFERROR(INDEX(tblDados[],MATCH(E$5+$B18&MostrarNome,tblDados[DATA E HORA]&tblDados[QUEM],0),3),\"\")","v":""},{"$f":"IFERROR(INDEX(tblDados[],MATCH(F$5+$B18&MostrarNome,tblDados[DATA E HORA]&tblDados[QUEM],0),3),\"\")","v":""},{"$f":"IFERROR(INDEX(tblDados[],MATCH(G$5+$B18&MostrarNome,tblDados[DATA E HORA]&tblDados[QUEM],0),3),\"\")","v":""},{"$f":"IFERROR(INDEX(tblDados[],MATCH(H$5+$B18&MostrarNome,tblDados[DATA E HORA]&tblDados[QUEM],0),3),\"\")","v":""},{"$f":"IFERROR(INDEX(tblDados[],MATCH(I$5+$B18&MostrarNome,tblDados[DATA E HORA]&tblDados[QUEM],0),3),\"\")","v":"Voltar para casa"}]
[null,"18:00:00",{"$f":"IFERROR(INDEX(tblDados[],MATCH(C$5+$B19&MostrarNome,tblDados[DATA E HORA]&tblDados[QUEM],0),3),\"\")","v":"Toma remédio"},{"$f":"IFERROR(INDEX(tblDados[],MATCH(D$5+$B19&MostrarNome,tblDados[DATA E HORA]&tblDados[QUEM],0),3),\"\")","v":""},{"$f":"IFERROR(INDEX(tblDados[],MATCH(E$5+$B19&MostrarNome,tblDados[DATA E HORA]&tblDados[QUEM],0),3),\"\")","v":""},{"$f":"IFERROR(INDEX(tblDados[],MATCH(F$5+$B19&MostrarNome,tblDados[DATA E HORA]&tblDados[QUEM],0),3),\"\")","v":""},{"$f":"IFERROR(INDEX(tblDados[],MATCH(G$5+$B19&MostrarNome,tblDados[DATA E HORA]&tblDados[QUEM],0),3),\"\")","v":""},{"$f":"IFERROR(INDEX(tblDados[],MATCH(H$5+$B19&MostrarNome,tblDados[DATA E HORA]&tblDados[QUEM],0),3),\"\")","v":""},{"$f":"IFERROR(INDEX(tblDados[],MATCH(I$5+$B19&MostrarNome,tblDados[DATA E HORA]&tblDados[QUEM],0),3),\"\")","v":""}]
[null,"19:00:00",{"$f":"IFERROR(INDEX(tblDados[],MATCH(C$5+$B20&MostrarNome,tblDados[DATA E HORA]&tblDados[QUEM],0),3),\"\")","v":""},{"$f":"IFERROR(INDEX(tblDados[],MATCH(D$5+$B20&MostrarNome,tblDados[DATA E HORA]&tblDados[QUEM],0),3),\"\")","v":""},{"$f":"IFERROR(INDEX(tblDados[],MATCH(E$5+$B20&MostrarNome,tblDados[DATA E HORA]&tblDados[QUEM],0),3),\"\")","v":""},{"$f":"IFERROR(INDEX(tblDados[],MATCH(F$5+$B20&MostrarNome,tblDados[DATA E HORA]&tblDados[QUEM],0),3),\"\")","v":""},{"$f":"IFERROR(INDEX(tblDados[],MATCH(G$5+$B20&MostrarNome,tblDados[DATA E HORA]&tblDados[QUEM],0),3),\"\")","v":""},{"$f":"IFERROR(INDEX(tblDados[],MATCH(H$5+$B20&MostrarNome,tblDados[DATA E HORA]&tblDados[QUEM],0),3),\"\")","v":""},{"$f":"IFERROR(INDEX(tblDados[],MATCH(I$5+$B20&MostrarNome,tblDados[DATA E HORA]&tblDados[QUEM],0),3),\"\")","v":""}]
[null,"20:00:00",{"$f":"IFERROR(INDEX(tblDados[],MATCH(C$5+$B21&MostrarNome,tblDados[DATA E HORA]&tblDados[QUEM],0),3),\"\")","v":"Cinema com a família"},{"$f":"IFERROR(INDEX(tblDados[],MATCH(D$5+$B21&MostrarNome,tblDados[DATA E HORA]&tblDados[QUEM],0),3),\"\")","v":""},{"$f":"IFERROR(INDEX(tblDados[],MATCH(E$5+$B21&MostrarNome,tblDados[DATA E HORA]&tblDados[QUEM],0),3),\"\")","v":""},{"$f":"IFERROR(INDEX(tblDados[],MATCH(F$5+$B21&MostrarNome,tblDados[DATA E HORA]&tblDados[QUEM],0),3),\"\")","v":"Espetáculo de fogos de artifício"},{"$f":"IFERROR(INDEX(tblDados[],MATCH(G$5+$B21&MostrarNome,tblDados[DATA E HORA]&tblDados[QUEM],0),3),\"\")","v":""},{"$f":"IFERROR(INDEX(tblDados[],MATCH(H$5+$B21&MostrarNome,tblDados[DATA E HORA]&tblDados[QUEM],0),3),\"\")","v":""},{"$f":"IFERROR(INDEX(tblDados[],MATCH(I$5+$B21&MostrarNome,tblDados[DATA E HORA]&tblDados[QUEM],0),3),\"\")","v":""}]
[null,"21:00:00",{"$f":"IFERROR(INDEX(tblDados[],MATCH(C$5+$B22&MostrarNome,tblDados[DATA E HORA]&tblDados[QUEM],0),3),\"\")","v":""},{"$f":"IFERROR(INDEX(tblDados[],MATCH(D$5+$B22&MostrarNome,tblDados[DATA E HORA]&tblDados[QUEM],0),3),\"\")","v":""},{"$f":"IFERROR(INDEX(tblDados[],MATCH(E$5+$B22&MostrarNome,tblDados[DATA E HORA]&tblDados[QUEM],0),3),\"\")","v":""},{"$f":"IFERROR(INDEX(tblDados[],MATCH(F$5+$B22&MostrarNome,tblDados[DATA E HORA]&tblDados[QUEM],0),3),\"\")","v":""},{"$f":"IFERROR(INDEX(tblDados[],MATCH(G$5+$B22&MostrarNome,tblDados[DATA E HORA]&tblDados[QUEM],0),3),\"\")","v":""},{"$f":"IFERROR(INDEX(tblDados[],MATCH(H$5+$B22&MostrarNome,tblDados[DATA E HORA]&tblDados[QUEM],0),3),\"\")","v":""},{"$f":"IFERROR(INDEX(tblDados[],MATCH(I$5+$B22&MostrarNome,tblDados[DATA E HORA]&tblDados[QUEM],0),3),\"\")","v":""}]
[null,"22:00:00",{"$f":"IFERROR(INDEX(tblDados[],MATCH(C$5+$B23&MostrarNome,tblDados[DATA E HORA]&tblDados[QUEM],0),3),\"\")","v":""},{"$f":"IFERROR(INDEX(tblDados[],MATCH(D$5+$B23&MostrarNome,tblDados[DATA E HORA]&tblDados[QUEM],0),3),\"\")","v":""},{"$f":"IFERROR(INDEX(tblDados[],MATCH(E$5+$B23&MostrarNome,tblDados[DATA E HORA]&tblDados[QUEM],0),3),\"\")","v":""},{"$f":"IFERROR(INDEX(tblDados[],MATCH(F$5+$B23&MostrarNome,tblDados[DATA E HORA]&tblDados[QUEM],0),3),\"\")","v":""},{"$f":"IFERROR(INDEX(tblDados[],MATCH(G$5+$B23&MostrarNome,tblDados[DATA E HORA]&tblDados[QUEM],0),3),\"\")","v":""},{"$f":"IFERROR(INDEX(tblDados[],MATCH(H$5+$B23&MostrarNome,tblDados[DATA E HORA]&tblDados[QUEM],0),3),\"\")","v":""},{"$f":"IFERROR(INDEX(tblDados[],MATCH(I$5+$B23&MostrarNome,tblDados[DATA E HORA]&tblDados[QUEM],0),3),\"\")","v":""}]

{"sheet":"Entrada de dados","index":1,"n_rows":14,"n_cols":4,"rows_kept":14}
[null,"ENTRADA DE DADOS"]
[]
[null,"DATA E HORA","QUEM","TAREFA"]
[null,"2012-07-02T08:00:00","Paula","Consulta com médico"]
[null,"2012-07-02T18:00:00","Manuel","Toma remédio"]
[null,"2012-07-02T18:30:00","Manuel","Jantar com Isa"]
[null,"2012-07-02T20:00:00","Manuel","Cinema com a família"]
[null,"2012-07-03T16:00:00","Manuel","Ir para o sítio"]
[null,"2012-07-04T10:00:00","Manuel","Desfile no centro da cidade"]
[null,"2012-07-05T20:00:00","Manuel","Espetáculo de fogos de artifício"]
[null,"2012-07-06T11:00:00","Manuel","Churrasco com a família"]
[null,"2012-07-07","Manuel","Piquenique da comunidade"]
[null,"2012-07-08T17:00:00","Manuel","Voltar para casa"]
[null,"2012-07-02T10:00:00","Paula","Aula de piano"]

{"sheet":"Pesquisa de nome","index":2,"n_rows":131,"n_cols":2,"rows_kept":131,"hidden":true,"merged":[[0,0,0,1]]}
["Esta planilha preenche a lista suspensa de nomes na planilha Agenda da célula H3. Qualquer alteração feita nesta planilha pode resultar em erro."]
["NOME EXCLUSIVO","NÚMERO DA LINHA"]
[{"$f":"IFERROR(INDEX(CampoQuem,MATCH(0,COUNTIF($A$2:A2,CampoQuem),0)),\"\")","v":"Paula"},{"$f":"IF(A3=\"\",\"\",ROW())","v":3}]
[{"$f":"IFERROR(INDEX(CampoQuem,MATCH(0,COUNTIF($A$2:A3,CampoQuem),0)),\"\")","v":"Manuel"},4]
[{"$f":"IFERROR(INDEX(CampoQuem,MATCH(0,COUNTIF($A$2:A4,CampoQuem),0)),\"\")","v":""},""]
[{"$f":"IFERROR(INDEX(CampoQuem,MATCH(0,COUNTIF($A$2:A5,CampoQuem),0)),\"\")","v":""},""]
[{"$f":"IFERROR(INDEX(CampoQuem,MATCH(0,COUNTIF($A$2:A6,CampoQuem),0)),\"\")","v":""},""]
[{"$f":"IFERROR(INDEX(CampoQuem,MATCH(0,COUNTIF($A$2:A7,CampoQuem),0)),\"\")","v":""},""]
[{"$f":"IFERROR(INDEX(CampoQuem,MATCH(0,COUNTIF($A$2:A8,CampoQuem),0)),\"\")","v":""},""]
[{"$f":"IFERROR(INDEX(CampoQuem,MATCH(0,COUNTIF($A$2:A9,CampoQuem),0)),\"\")","v":""},""]
[{"$f":"IFERROR(INDEX(CampoQuem,MATCH(0,COUNTIF($A$2:A10,CampoQuem),0)),\"\")","v":""},""]
[{"$f":"IFERROR(INDEX(CampoQuem,MATCH(0,COUNTIF($A$2:A11,CampoQuem),0)),\"\")","v":""},""]
[{"$f":"IFERROR(INDEX(CampoQuem,MATCH(0,COUNTIF($A$2:A12,CampoQuem),0)),\"\")","v":""},""]
[{"$f":"IFERROR(INDEX(CampoQuem,MATCH(0,COUNTIF($A$2:A13,CampoQuem),0)),\"\")","v":""},""]
[{"$f":"IFERROR(INDEX(CampoQuem,MATCH(0,COUNTIF($A$2:A14,CampoQuem),0)),\"\")","v":""},""]
[{"$f":"IFERROR(INDEX(CampoQuem,MATCH(0,COUNTIF($A$2:A15,CampoQuem),0)),\"\")","v":""},""]
[{"$f":"IFERROR(INDEX(CampoQuem,MATCH(0,COUNTIF($A$2:A16,CampoQuem),0)),\"\")","v":""},""]
[{"$f":"IFERROR(INDEX(CampoQuem,MATCH(0,COUNTIF($A$2:A17,CampoQuem),0)),\"\")","v":""},""]
[{"$f":"IFERROR(INDEX(CampoQuem,MATCH(0,COUNTIF($A$2:A18,CampoQuem),0)),\"\")","v":""},""]
[{"$f":"IFERROR(INDEX(CampoQuem,MATCH(0,COUNTIF($A$2:A19,CampoQuem),0)),\"\")","v":""},""]
[{"$f":"IFERROR(INDEX(CampoQuem,MATCH(0,COUNTIF($A$2:A20,CampoQuem),0)),\"\")","v":""},""]
[{"$f":"IFERROR(INDEX(CampoQuem,MATCH(0,COUNTIF($A$2:A21,CampoQuem),0)),\"\")","v":""},""]
[{"$f":"IFERROR(INDEX(CampoQuem,MATCH(0,COUNTIF($A$2:A22,CampoQuem),0)),\"\")","v":""},""]
[{"$f":"IFERROR(INDEX(CampoQuem,MATCH(0,COUNTIF($A$2:A23,CampoQuem),0)),\"\")","v":""},""]
[{"$f":"IFERROR(INDEX(CampoQuem,MATCH(0,COUNTIF($A$2:A24,CampoQuem),0)),\"\")","v":""},""]
[{"$f":"IFERROR(INDEX(CampoQuem,MATCH(0,COUNTIF($A$2:A25,CampoQuem),0)),\"\")","v":""},""]
[{"$f":"IFERROR(INDEX(CampoQuem,MATCH(0,COUNTIF($A$2:A26,CampoQuem),0)),\"\")","v":""},""]
[{"$f":"IFERROR(INDEX(CampoQuem,MATCH(0,COUNTIF($A$2:A27,CampoQuem),0)),\"\")","v":""},""]
[{"$f":"IFERROR(INDEX(CampoQuem,MATCH(0,COUNTIF($A$2:A28,CampoQuem),0)),\"\")","v":""},""]
[{"$f":"IFERROR(INDEX(CampoQuem,MATCH(0,COUNTIF($A$2:A29,CampoQuem),0)),\"\")","v":""},""]
[{"$f":"IFERROR(INDEX(CampoQuem,MATCH(0,COUNTIF($A$2:A30,CampoQuem),0)),\"\")","v":""},""]
[{"$f":"IFERROR(INDEX(CampoQuem,MATCH(0,COUNTIF($A$2:A31,CampoQuem),0)),\"\")","v":""},""]
[{"$f":"IFERROR(INDEX(CampoQuem,MATCH(0,COUNTIF($A$2:A32,CampoQuem),0)),\"\")","v":""},""]
[{"$f":"IFERROR(INDEX(CampoQuem,MATCH(0,COUNTIF($A$2:A33,CampoQuem),0)),\"\")","v":""},""]
[{"$f":"IFERROR(INDEX(CampoQuem,MATCH(0,COUNTIF($A$2:A34,CampoQuem),0)),\"\")","v":""},""]
[{"$f":"IFERROR(INDEX(CampoQuem,MATCH(0,COUNTIF($A$2:A35,CampoQuem),0)),\"\")","v":""},""]
[{"$f":"IFERROR(INDEX(CampoQuem,MATCH(0,COUNTIF($A$2:A36,CampoQuem),0)),\"\")","v":""},""]
[{"$f":"IFERROR(INDEX(CampoQuem,MATCH(0,COUNTIF($A$2:A37,CampoQuem),0)),\"\")","v":""},""]
[{"$f":"IFERROR(INDEX(CampoQuem,MATCH(0,COUNTIF($A$2:A38,CampoQuem),0)),\"\")","v":""},""]
[{"$f":"IFERROR(INDEX(CampoQuem,MATCH(0,COUNTIF($A$2:A39,CampoQuem),0)),\"\")","v":""},""]
[{"$f":"IFERROR(INDEX(CampoQuem,MATCH(0,COUNTIF($A$2:A40,CampoQuem),0)),\"\")","v":""},""]
[{"$f":"IFERROR(INDEX(CampoQuem,MATCH(0,COUNTIF($A$2:A41,CampoQuem),0)),\"\")","v":""},""]
[{"$f":"IFERROR(INDEX(CampoQuem,MATCH(0,COUNTIF($A$2:A42,CampoQuem),0)),\"\")","v":""},""]
[{"$f":"IFERROR(INDEX(CampoQuem,MATCH(0,COUNTIF($A$2:A43,CampoQuem),0)),\"\")","v":""},""]
[{"$f":"IFERROR(INDEX(CampoQuem,MATCH(0,COUNTIF($A$2:A44,CampoQuem),0)),\"\")","v":""},""]
[{"$f":"IFERROR(INDEX(CampoQuem,MATCH(0,COUNTIF($A$2:A45,CampoQuem),0)),\"\")","v":""},""]
[{"$f":"IFERROR(INDEX(CampoQuem,MATCH(0,COUNTIF($A$2:A46,CampoQuem),0)),\"\")","v":""},""]
[{"$f":"IFERROR(INDEX(CampoQuem,MATCH(0,COUNTIF($A$2:A47,CampoQuem),0)),\"\")","v":""},""]
[{"$f":"IFERROR(INDEX(CampoQuem,MATCH(0,COUNTIF($A$2:A48,CampoQuem),0)),\"\")","v":""},""]
[{"$f":"IFERROR(INDEX(CampoQuem,MATCH(0,COUNTIF($A$2:A49,CampoQuem),0)),\"\")","v":""},""]
[{"$f":"IFERROR(INDEX(CampoQuem,MATCH(0,COUNTIF($A$2:A50,CampoQuem),0)),\"\")","v":""},""]
[{"$f":"IFERROR(INDEX(CampoQuem,MATCH(0,COUNTIF($A$2:A51,CampoQuem),0)),\"\")","v":""},""]
[{"$f":"IFERROR(INDEX(CampoQuem,MATCH(0,COUNTIF($A$2:A52,CampoQuem),0)),\"\")","v":""},""]
[{"$f":"IFERROR(INDEX(CampoQuem,MATCH(0,COUNTIF($A$2:A53,CampoQuem),0)),\"\")","v":""},""]
[{"$f":"IFERROR(INDEX(CampoQuem,MATCH(0,COUNTIF($A$2:A54,CampoQuem),0)),\"\")","v":""},""]
[{"$f":"IFERROR(INDEX(CampoQuem,MATCH(0,COUNTIF($A$2:A55,CampoQuem),0)),\"\")","v":""},""]
[{"$f":"IFERROR(INDEX(CampoQuem,MATCH(0,COUNTIF($A$2:A56,CampoQuem),0)),\"\")","v":""},""]
[{"$f":"IFERROR(INDEX(CampoQuem,MATCH(0,COUNTIF($A$2:A57,CampoQuem),0)),\"\")","v":""},""]
[{"$f":"IFERROR(INDEX(CampoQuem,MATCH(0,COUNTIF($A$2:A58,CampoQuem),0)),\"\")","v":""},""]
[{"$f":"IFERROR(INDEX(CampoQuem,MATCH(0,COUNTIF($A$2:A59,CampoQuem),0)),\"\")","v":""},""]
[{"$f":"IFERROR(INDEX(CampoQuem,MATCH(0,COUNTIF($A$2:A60,CampoQuem),0)),\"\")","v":""},""]
[{"$f":"IFERROR(INDEX(CampoQuem,MATCH(0,COUNTIF($A$2:A61,CampoQuem),0)),\"\")","v":""},""]
[{"$f":"IFERROR(INDEX(CampoQuem,MATCH(0,COUNTIF($A$2:A62,CampoQuem),0)),\"\")","v":""},""]
[{"$f":"IFERROR(INDEX(CampoQuem,MATCH(0,COUNTIF($A$2:A63,CampoQuem),0)),\"\")","v":""},""]
[{"$f":"IFERROR(INDEX(CampoQuem,MATCH(0,COUNTIF($A$2:A64,CampoQuem),0)),\"\")","v":""},""]
[{"$f":"IFERROR(INDEX(CampoQuem,MATCH(0,COUNTIF($A$2:A65,CampoQuem),0)),\"\")","v":""},""]
[{"$f":"IFERROR(INDEX(CampoQuem,MATCH(0,COUNTIF($A$2:A66,CampoQuem),0)),\"\")","v":""},{"$f":"IF(A67=\"\",\"\",ROW())","v":""}]
[{"$f":"IFERROR(INDEX(CampoQuem,MATCH(0,COUNTIF($A$2:A67,CampoQuem),0)),\"\")","v":""},""]
[{"$f":"IFERROR(INDEX(CampoQuem,MATCH(0,COUNTIF($A$2:A68,CampoQuem),0)),\"\")","v":""},""]
[{"$f":"IFERROR(INDEX(CampoQuem,MATCH(0,COUNTIF($A$2:A69,CampoQuem),0)),\"\")","v":""},""]
[{"$f":"IFERROR(INDEX(CampoQuem,MATCH(0,COUNTIF($A$2:A70,CampoQuem),0)),\"\")","v":""},""]
[{"$f":"IFERROR(INDEX(CampoQuem,MATCH(0,COUNTIF($A$2:A71,CampoQuem),0)),\"\")","v":""},""]
[{"$f":"IFERROR(INDEX(CampoQuem,MATCH(0,COUNTIF($A$2:A72,CampoQuem),0)),\"\")","v":""},""]
[{"$f":"IFERROR(INDEX(CampoQuem,MATCH(0,COUNTIF($A$2:A73,CampoQuem),0)),\"\")","v":""},""]
[{"$f":"IFERROR(INDEX(CampoQuem,MATCH(0,COUNTIF($A$2:A74,CampoQuem),0)),\"\")","v":""},""]
[{"$f":"IFERROR(INDEX(CampoQuem,MATCH(0,COUNTIF($A$2:A75,CampoQuem),0)),\"\")","v":""},""]
[{"$f":"IFERROR(INDEX(CampoQuem,MATCH(0,COUNTIF($A$2:A76,CampoQuem),0)),\"\")","v":""},""]
[{"$f":"IFERROR(INDEX(CampoQuem,MATCH(0,COUNTIF($A$2:A77,CampoQuem),0)),\"\")","v":""},""]
[{"$f":"IFERROR(INDEX(CampoQuem,MATCH(0,COUNTIF($A$2:A78,CampoQuem),0)),\"\")","v":""},""]
[{"$f":"IFERROR(INDEX(CampoQuem,MATCH(0,COUNTIF($A$2:A79,CampoQuem),0)),\"\")","v":""},""]
[{"$f":"IFERROR(INDEX(CampoQuem,MATCH(0,COUNTIF($A$2:A80,CampoQuem),0)),\"\")","v":""},""]
[{"$f":"IFERROR(INDEX(CampoQuem,MATCH(0,COUNTIF($A$2:A81,CampoQuem),0)),\"\")","v":""},""]
[{"$f":"IFERROR(INDEX(CampoQuem,MATCH(0,COUNTIF($A$2:A82,CampoQuem),0)),\"\")","v":""},""]
[{"$f":"IFERROR(INDEX(CampoQuem,MATCH(0,COUNTIF($A$2:A83,CampoQuem),0)),\"\")","v":""},""]
[{"$f":"IFERROR(INDEX(CampoQuem,MATCH(0,COUNTIF($A$2:A84,CampoQuem),0)),\"\")","v":""},""]
[{"$f":"IFERROR(INDEX(CampoQuem,MATCH(0,COUNTIF($A$2:A85,CampoQuem),0)),\"\")","v":""},""]
[{"$f":"IFERROR(INDEX(CampoQuem,MATCH(0,COUNTIF($A$2:A86,CampoQuem),0)),\"\")","v":""},""]
[{"$f":"IFERROR(INDEX(CampoQuem,MATCH(0,COUNTIF($A$2:A87,CampoQuem),0)),\"\")","v":""},""]
[{"$f":"IFERROR(INDEX(CampoQuem,MATCH(0,COUNTIF($A$2:A88,CampoQuem),0)),\"\")","v":""},""]
[{"$f":"IFERROR(INDEX(CampoQuem,MATCH(0,COUNTIF($A$2:A89,CampoQuem),0)),\"\")","v":""},""]
[{"$f":"IFERROR(INDEX(CampoQuem,MATCH(0,COUNTIF($A$2:A90,CampoQuem),0)),\"\")","v":""},""]
[{"$f":"IFERROR(INDEX(CampoQuem,MATCH(0,COUNTIF($A$2:A91,CampoQuem),0)),\"\")","v":""},""]
[{"$f":"IFERROR(INDEX(CampoQuem,MATCH(0,COUNTIF($A$2:A92,CampoQuem),0)),\"\")","v":""},""]
[{"$f":"IFERROR(INDEX(CampoQuem,MATCH(0,COUNTIF($A$2:A93,CampoQuem),0)),\"\")","v":""},""]
[{"$f":"IFERROR(INDEX(CampoQuem,MATCH(0,COUNTIF($A$2:A94,CampoQuem),0)),\"\")","v":""},""]
[{"$f":"IFERROR(INDEX(CampoQuem,MATCH(0,COUNTIF($A$2:A95,CampoQuem),0)),\"\")","v":""},""]
[{"$f":"IFERROR(INDEX(CampoQuem,MATCH(0,COUNTIF($A$2:A96,CampoQuem),0)),\"\")","v":""},""]
[{"$f":"IFERROR(INDEX(CampoQuem,MATCH(0,COUNTIF($A$2:A97,CampoQuem),0)),\"\")","v":""},""]
[{"$f":"IFERROR(INDEX(CampoQuem,MATCH(0,COUNTIF($A$2:A98,CampoQuem),0)),\"\")","v":""},""]
[{"$f":"IFERROR(INDEX(CampoQuem,MATCH(0,COUNTIF($A$2:A99,CampoQuem),0)),\"\")","v":""},""]
[{"$f":"IFERROR(INDEX(CampoQuem,MATCH(0,COUNTIF($A$2:A100,CampoQuem),0)),\"\")","v":""},""]
[{"$f":"IFERROR(INDEX(CampoQuem,MATCH(0,COUNTIF($A$2:A101,CampoQuem),0)),\"\")","v":""},""]
[{"$f":"IFERROR(INDEX(CampoQuem,MATCH(0,COUNTIF($A$2:A102,CampoQuem),0)),\"\")","v":""},""]
[{"$f":"IFERROR(INDEX(CampoQuem,MATCH(0,COUNTIF($A$2:A103,CampoQuem),0)),\"\")","v":""},""]
[{"$f":"IFERROR(INDEX(CampoQuem,MATCH(0,COUNTIF($A$2:A104,CampoQuem),0)),\"\")","v":""},""]
[{"$f":"IFERROR(INDEX(CampoQuem,MATCH(0,COUNTIF($A$2:A105,CampoQuem),0)),\"\")","v":""},""]
[{"$f":"IFERROR(INDEX(CampoQuem,MATCH(0,COUNTIF($A$2:A106,CampoQuem),0)),\"\")","v":""},""]
[{"$f":"IFERROR(INDEX(CampoQuem,MATCH(0,COUNTIF($A$2:A107,CampoQuem),0)),\"\")","v":""},""]
[{"$f":"IFERROR(INDEX(CampoQuem,MATCH(0,COUNTIF($A$2:A108,CampoQuem),0)),\"\")","v":""},""]
[{"$f":"IFERROR(INDEX(CampoQuem,MATCH(0,COUNTIF($A$2:A109,CampoQuem),0)),\"\")","v":""},""]
[{"$f":"IFERROR(INDEX(CampoQuem,MATCH(0,COUNTIF($A$2:A110,CampoQuem),0)),\"\")","v":""},""]
[{"$f":"IFERROR(INDEX(CampoQuem,MATCH(0,COUNTIF($A$2:A111,CampoQuem),0)),\"\")","v":""},""]
[{"$f":"IFERROR(INDEX(CampoQuem,MATCH(0,COUNTIF($A$2:A112,CampoQuem),0)),\"\")","v":""},""]
[{"$f":"IFERROR(INDEX(CampoQuem,MATCH(0,COUNTIF($A$2:A113,CampoQuem),0)),\"\")","v":""},""]
[{"$f":"IFERROR(INDEX(CampoQuem,MATCH(0,COUNTIF($A$2:A114,CampoQuem),0)),\"\")","v":""},""]
[{"$f":"IFERROR(INDEX(CampoQuem,MATCH(0,COUNTIF($A$2:A115,CampoQuem),0)),\"\")","v":""},""]
[{"$f":"IFERROR(INDEX(CampoQuem,MATCH(0,COUNTIF($A$2:A116,CampoQuem),0)),\"\")","v":""},""]
[{"$f":"IFERROR(INDEX(CampoQuem,MATCH(0,COUNTIF($A$2:A117,CampoQuem),0)),\"\")","v":""},""]
[{"$f":"IFERROR(INDEX(CampoQuem,MATCH(0,COUNTIF($A$2:A118,CampoQuem),0)),\"\")","v":""},""]
[{"$f":"IFERROR(INDEX(CampoQuem,MATCH(0,COUNTIF($A$2:A119,CampoQuem),0)),\"\")","v":""},""]
[{"$f":"IFERROR(INDEX(CampoQuem,MATCH(0,COUNTIF($A$2:A120,CampoQuem),0)),\"\")","v":""},""]
[{"$f":"IFERROR(INDEX(CampoQuem,MATCH(0,COUNTIF($A$2:A121,CampoQuem),0)),\"\")","v":""},""]
[{"$f":"IFERROR(INDEX(CampoQuem,MATCH(0,COUNTIF($A$2:A122,CampoQuem),0)),\"\")","v":""},""]
[{"$f":"IFERROR(INDEX(CampoQuem,MATCH(0,COUNTIF($A$2:A123,CampoQuem),0)),\"\")","v":""},""]
[{"$f":"IFERROR(INDEX(CampoQuem,MATCH(0,COUNTIF($A$2:A124,CampoQuem),0)),\"\")","v":""},""]
[{"$f":"IFERROR(INDEX(CampoQuem,MATCH(0,COUNTIF($A$2:A125,CampoQuem),0)),\"\")","v":""},""]
[{"$f":"IFERROR(INDEX(CampoQuem,MATCH(0,COUNTIF($A$2:A126,CampoQuem),0)),\"\")","v":""},""]
[{"$f":"IFERROR(INDEX(CampoQuem,MATCH(0,COUNTIF($A$2:A127,CampoQuem),0)),\"\")","v":""},""]
[{"$f":"IFERROR(INDEX(CampoQuem,MATCH(0,COUNTIF($A$2:A128,CampoQuem),0)),\"\")","v":""},""]
[{"$f":"IFERROR(INDEX(CampoQuem,MATCH(0,COUNTIF($A$2:A129,CampoQuem),0)),\"\")","v":""},""]
[{"$f":"IFERROR(INDEX(CampoQuem,MATCH(0,COUNTIF($A$2:A130,CampoQuem),0)),\"\")","v":""},{"$f":"IF(A131=\"\",\"\",ROW())","v":""}]